bitfinex/quotes_ETHUSD_20250803
["timestamp","ask_amount","ask_price","bid_price","bid_amount"]
[1754220112731,30.0,3513.3,3512.9,0.9197]
[1754220112932,40.0,3513.1,3512.9,0.9197]
[1754220113120,30.0,3513.3,3512.9,0.9197]
[1754220113434,30.0,3513.1,3512.9,0.9197]
[1754220113617,4.546,3513.1,3512.9,0.9197]
[1754220113824,4.546,3513.1,3512.9,0.482]
[1754220114898,4.546,3513.1,3512.9,0.9197]
[1754220115232,3.12260242,3513.0,3512.9,0.002]
[1754220115532,33.08912583,3513.0,3512.9,0.002]
[1754220116398,33.23649617,3513.0,3512.9,0.002]
[1754220116804,33.18219617,3513.0,3512.9,0.002]
[1754220118942,33.23749617,3513.0,3512.9,0.002]
[1754220119533,33.23749261,3513.0,3512.9,0.002]
[1754220120108,33.23649261,3513.0,3512.9,0.002]
[1754220120324,33.18219261,3513.0,3512.9,0.002]
[1754220120525,0.001,3513.8,3512.9,0.9197]
[1754220120730,0.001,3513.8,3513.0,0.9177]
[1754220121208,0.001,3513.8,3513.1,0.9177]
[1754220121415,0.001,3513.8,3513.2,0.9177]
[1754220121611,0.001,3513.8,3512.9,0.002]
[1754220121612,0.001,3513.8,3513.3,0.9177]
[1754220121811,0.001,3513.8,3513.4,0.9177]
[1754220122016,0.001,3513.8,3513.5,0.9177]
[1754220122219,0.001,3513.8,3513.6,0.9177]
[1754220122524,0.001,3513.8,3513.7,0.9177]
[1754220123842,0.001,3513.8,3513.7,0.48]
[1754220124338,0.001,3513.8,3513.2,0.48]
[1754220124339,30.0,3513.7,3513.2,0.48]
[1754220124539,40.0,3513.5,3513.2,0.48]
[1754220124747,0.03347659,3513.4,3513.0,0.4377]
[1754220124965,0.03347659,3513.4,3513.0,0.9177]
[1754220125247,30.0,3513.3,3513.1,0.48]
[1754220125443,30.0,3513.3,3512.9,0.002]
[1754220125444,30.0,3513.3,3512.9,0.482]
[1754220125749,30.0,3513.3,3513.0,0.48]
[1754220126048,30.0,3513.3,3513.1,0.48]
[1754220126210,1.713,3513.2,3513.1,0.48]
[1754220126546,30.0,3513.3,3512.9,0.4397]
[1754220126846,4.54,3513.2,3513.0,0.48]
[1754220127345,0.001,3513.8,3513.1,0.9177]
[1754220127511,40.0,3513.5,3513.2,0.48]
[1754220127711,30.0,3513.3,3513.0,0.002]
[1754220128343,30.0,3513.3,3513.0,0.482]
[1754220128747,30.0,3513.3,3513.0,0.002]
[1754220129110,30.0,3513.1,3513.0,0.002]
[1754220129310,39.252,3513.1,3513.0,0.002]
[1754220129915,39.4352,3513.1,3513.0,0.002]
[1754220130113,39.4895,3513.1,3513.0,0.002]
[1754220130434,40.0395,3513.1,3513.0,0.002]
[1754220131019,40.3248,3513.1,3513.0,0.002]
[1754220131340,38.6118,3513.1,3513.0,0.002]
[1754220131924,38.3743,3513.1,3513.0,0.002]
[1754220132654,38.55651813,3513.1,3513.0,0.002]
[1754220132949,37.72021813,3513.1,3513.0,0.002]
[1754220133447,33.18221813,3513.1,3513.0,0.002]
[1754220133647,7.72021813,3513.1,3513.0,0.9197]
[1754220133951,37.72021813,3513.1,3513.0,0.002]
[1754220134251,37.62713947,3513.1,3513.0,0.9197]
[1754220134635,33.08913947,3513.1,3513.0,0.9197]
[1754220134818,37.62613947,3513.1,3513.0,0.9197]
[1754220135318,7.62613947,3513.1,3513.0,0.9197]
[1754220136223,7.62513947,3513.1,3513.0,0.482]
[1754220136627,3.08913947,3513.1,3513.0,0.482]
[1754220136938,7.62513947,3513.1,3513.0,0.9197]
[1754220137928,0.08913947,3513.1,3513.0,0.9197]
[1754220138128,4.536,3513.4,3513.0,0.9197]
[1754220138329,0.08912046,3513.3,3513.1,0.9177]
[1754220138564,0.08912046,3513.2,3513.0,0.002]
[1754220138751,4.535,3513.6,3513.0,0.002]
[1754220138946,0.08912002,3513.5,3513.0,0.002]
[1754220139270,0.08912002,3513.4,3513.1,0.9177]
[1754220139564,0.08912002,3513.3,3513.2,0.9177]
[1754220139730,4.535,3513.6,3513.3,0.9376]
[1754220139926,0.08911797,3513.5,3513.0,0.002]
[1754220140146,4.535,3513.6,3513.4,0.9376]
[1754220140351,7.535,3513.6,3513.5,0.9376]
[1754220140552,7.62411142,3513.6,3513.5,0.9376]
[1754220141760,30.0,3513.5,3513.1,0.4975]
[1754220141962,40.0,3513.3,3513.0,0.002]
[1754220142164,4.534,3513.2,3513.0,0.4995]
[1754220142865,4.534,3513.2,3513.0,0.002]
[1754220143165,4.534,3513.2,3513.0,0.4995]
[1754220143370,4.534,3513.2,3513.1,0.4975]
[1754220143537,4.534,3513.2,3513.1,0.9376]
[1754220143948,4.62312125,3513.2,3513.1,0.9376]
[1754220144682,4.533,3513.3,3513.1,0.9376]
[1754220144864,3.0,3513.7,3513.2,0.9376]
[1754220144865,3.0,3513.6,3513.2,0.9376]
[1754220145067,0.0891201,3513.5,3513.3,0.9376]
[1754220145381,0.0891201,3513.4,3513.0,0.002]
[1754220145544,4.533,3513.7,3513.0,0.002]
[1754220145742,0.08911918,3513.6,3513.0,0.002]
[1754220145958,0.08911918,3513.5,3513.1,0.9376]
[1754220146175,0.08911918,3513.4,3513.0,0.002]
[1754220146349,4.533,3513.7,3513.2,0.9376]
[1754220146548,4.533,3513.7,3513.0,0.002]
[1754220146549,0.08911919,3513.6,3513.3,0.9376]
[1754220146749,4.533,3513.7,3513.0,0.002]
[1754220146949,4.533,3513.7,3513.4,0.9376]
[1754220147151,4.533,3513.7,3513.4,0.4401]
[1754220147351,4.533,3513.7,3513.5,0.4975]
[1754220147858,30.0,3513.7,3513.6,0.9376]
[1754220148084,4.62011487,3513.7,3513.6,0.9376]
[1754220148782,4.62011487,3513.7,3513.6,0.4975]
[1754220148988,4.62011487,3513.7,3513.4,0.4975]
[1754220149153,0.08911487,3513.6,3513.4,0.4975]
[1754220149484,4.531,3513.7,3513.5,0.4975]
[1754220149648,0.08911505,3513.6,3513.5,0.4975]
[1754220149848,30.0,3513.5,3513.0,0.002]
[1754220150042,4.531,3513.4,3513.0,0.002]
[1754220150270,30.0,3513.3,3513.1,0.4975]
[1754220152160,0.08912006,3513.2,3513.1,0.4975]
[1754220153473,0.08912006,3513.2,3513.1,0.9376]
[1754220154582,0.001,3513.7,3513.1,0.9376]
[1754220154901,4.528,3513.5,3513.2,0.9376]
[1754220155200,4.528,3513.5,3513.3,0.9376]
[1754220155201,0.08911057,3513.4,3513.3,0.9376]
[1754220158177,4.528,3513.7,3513.3,0.9376]
[1754220158375,0.08910816,3513.6,3513.4,0.9376]
[1754220158675,0.001,3513.7,3513.5,0.9376]
[1754220158875,0.001,3513.7,3513.6,0.9376]
[1754220159101,0.001,3513.7,3513.0,0.002]
[1754220159102,0.09010531,3513.7,3513.0,0.002]
[1754220159287,0.001,3513.7,3513.6,0.9376]
[1754220164490,0.001,3513.7,3513.6,1.08]
[1754220166322,0.001,3513.7,3513.6,1.10846083]
[1754220166897,2.952,3515.1,3513.6,1.10846083]
[1754220167198,30.0,3515.2,3513.7,0.9376]
[1754220167443,0.12255162,3515.1,3513.8,0.9376]
[1754220167732,0.14337864,3515.0,3513.9,0.9376]
[1754220167919,0.14337864,3515.0,3514.0,0.4975]
[1754220168118,0.1832,3514.9,3514.0,0.4975]
[1754220168526,0.14337991,3515.0,3514.0,0.4975]
[1754220168696,0.08907991,3515.1,3514.1,0.4401]
[1754220169035,0.08907991,3515.0,3514.2,0.4975]
[1754220169223,3.0,3515.2,3514.3,0.4401]
[1754220169412,0.08908004,3515.1,3514.4,0.4975]
[1754220169724,30.0,3515.1,3514.4,0.4975]
[1754220170132,30.0,3515.1,3513.7,0.85577]
[1754220170133,0.14338002,3515.0,3514.2,0.4827]
[1754220170303,30.0,3514.9,3514.0,0.9243]
[1754220171336,30.0,3514.9,3514.1,0.4827]
[1754220171709,30.0,3515.1,3514.2,0.4416]
[1754220171913,40.0,3515.3,3514.2,0.4416]
[1754220172241,0.001,3515.0,3514.3,0.4827]
[1754220172599,0.001,3515.0,3514.4,0.4416]
[1754220172996,0.001,3515.0,3514.5,0.51115354]
[1754220173242,0.001,3515.0,3514.5,0.4827]
[1754220173423,0.001,3515.0,3514.6,0.4416]
[1754220173936,0.001,3515.0,3514.7,0.4827]
[1754220174299,0.001,3515.0,3514.8,0.4416]
[1754220174748,0.001,3515.0,3514.9,0.4827]
[1754220175349,0.001,3515.0,3514.9,0.9243]
[1754220180547,0.001,3515.0,3514.9,0.95275031]
[1754220180853,0.001,3515.0,3514.9,0.9243]
[1754220181414,0.001,3515.0,3514.9,1.0667]
[1754220181618,0.001,3515.0,3514.9,1.77164]
[1754220182148,0.08904468,3516.9,3515.0,0.55]
[1754220182351,0.08904468,3516.9,3514.9,1.22164]
[1754220182352,0.08904468,3516.9,3515.2,3.55]
[1754220182527,3.0,3517.0,3515.6,0.1424]
[1754220182732,3.2375,3517.1,3515.7,0.9243]
[1754220183060,3.2375,3517.1,3515.8,0.9243]
[1754220183061,0.36001285,3517.0,3515.8,0.9243]
[1754220183260,3.0,3516.8,3515.8,0.4827]
[1754220183421,40.0,3516.7,3515.8,0.4827]
[1754220183615,0.88412682,3517.6,3515.8,0.4827]
[1754220183616,0.1832,3517.2,3515.8,0.4827]
[1754220183815,3.0,3516.8,3515.9,0.4416]
[1754220184057,3.0,3517.3,3515.8,0.4827]
[1754220184254,0.2375,3516.7,3515.7,0.855248]
[1754220184456,30.2375,3516.6,3515.7,0.855248]
[1754220184655,0.08903867,3517.0,3515.8,0.9243]
[1754220184656,3.0,3516.9,3515.8,0.9243]
[1754220184841,0.0543,3516.8,3515.8,0.4827]
[1754220185161,3.0,3517.1,3515.9,0.9243]
[1754220185478,0.08903645,3517.0,3516.0,0.9243]
[1754220185786,0.08903645,3517.0,3516.1,0.4827]
[1754220186081,0.0543,3516.9,3515.8,0.4827]
[1754220186374,0.0543,3516.9,3516.1,0.855248]
[1754220186527,0.33265365,3516.8,3516.1,1.337948]
[1754220187329,0.33265365,3516.8,3516.1,0.855248]
[1754220187705,0.33265365,3516.8,3516.2,0.4827]
[1754220189531,0.33265365,3516.8,3516.2,0.9243]
[1754220190177,0.33265365,3516.8,3516.2,0.4827]
[1754220190481,0.08903476,3516.7,3516.2,0.4827]
[1754220191231,0.4366336,3516.7,3516.2,0.4827]
[1754220191478,0.34759884,3516.7,3516.2,0.4827]
[1754220191771,0.34759884,3516.7,3516.3,0.4827]
[1754220191932,0.34759884,3516.7,3515.9,0.855248]
[1754220192132,0.34759884,3516.7,3516.4,0.4827]
[1754220193939,0.34759884,3516.7,3516.3,0.4416]
[1754220193940,0.001,3516.8,3516.5,0.9243]
[1754220194161,0.001,3516.8,3516.6,0.9243]
[1754220194653,0.001,3516.8,3516.7,0.4827]
[1754220194985,0.0900338,3516.8,3516.7,0.4827]
[1754220195986,0.0900338,3516.8,3516.7,0.9243]
[1754220196760,0.0900338,3516.8,3516.4,0.855133]
[1754220196961,0.001,3516.8,3516.5,0.4827]
[1754220197173,0.08903423,3516.7,3516.3,0.4827]
[1754220197373,0.001,3516.8,3516.3,0.4827]
[1754220197574,0.08903513,3516.7,3516.1,0.4416]
[1754220197775,0.001,3516.8,3516.4,0.4827]
[1754220197968,0.08903626,3516.7,3516.4,0.4827]
[1754220198172,0.001,3516.8,3516.0,0.855133]
[1754220198374,0.08903531,3516.7,3516.5,0.4827]
[1754220198569,0.001,3516.8,3516.5,0.4827]
[1754220198776,0.08903439,3516.7,3516.5,0.4827]
[1754220198978,0.001,3516.8,3516.0,0.855133]
[1754220199212,3.0,3516.4,3515.5,0.4827]
[1754220199506,30.0,3516.3,3515.5,0.4827]
[1754220200536,30.0,3516.3,3515.6,0.4285]
[1754220200705,4.506,3516.5,3515.7,0.4801]
[1754220201098,4.506,3516.5,3515.8,0.4285]
[1754220201294,0.08903845,3516.4,3515.9,0.4801]
[1754220201512,4.506,3516.5,3516.0,0.9086]
[1754220201802,30.0,3516.3,3515.5,0.4801]
[1754220202143,0.08903985,3516.2,3515.5,0.4801]
[1754220202349,0.08903985,3516.1,3515.5,0.4801]
[1754220202528,30.12251644,3516.0,3515.2,0.855133]
[1754220202701,30.0,3515.8,3515.0,0.4801]
[1754220202895,0.08905872,3515.7,3515.0,0.4801]
[1754220203236,30.0,3515.5,3514.9,0.002]
[1754220203395,40.0,3515.3,3514.9,0.002]
[1754220203734,30.0,3515.3,3514.9,0.002]
[1754220204137,4.505,3515.4,3514.9,0.002]
[1754220204337,0.08906892,3515.3,3514.9,0.002]
[1754220204548,0.08906833,3515.2,3514.9,0.4821]
[1754220204850,0.08906833,3515.1,3514.9,0.002]
[1754220205013,4.505,3515.4,3514.9,0.002]
[1754220205215,0.0890721,3515.3,3514.9,0.002]
[1754220205437,30.0,3515.1,3514.9,0.002]
[1754220205596,0.0890721,3515.0,3514.9,0.002]
[1754220206329,0.14337995,3515.0,3514.9,0.002]
[1754220206502,0.53977995,3515.0,3514.9,0.002]
[1754220206904,5.04477995,3515.0,3514.9,0.002]
[1754220207156,35.04477995,3515.0,3514.9,0.002]
[1754220207360,35.04478141,3515.0,3514.9,0.002]
[1754220208441,35.28228141,3515.0,3514.9,0.002]
[1754220208642,38.28228141,3515.0,3514.9,0.002]
[1754220208952,38.37137311,3515.0,3514.9,0.002]
[1754220209107,38.28228141,3515.0,3514.9,0.002]
[1754220210315,38.37137608,3515.0,3514.9,0.002]
[1754220211664,38.92137608,3515.0,3514.9,0.002]
[1754220211942,38.37037608,3515.0,3514.9,0.002]
[1754220212884,38.13287608,3515.0,3514.9,0.002]
[1754220213055,33.53979646,3515.0,3514.9,0.002]
[1754220213208,38.04279646,3515.0,3514.9,0.002]
[1754220213413,38.04279646,3515.0,3514.9,0.9106]
[1754220213651,34.59209646,3515.0,3514.9,0.9106]
[1754220213870,4.59209646,3515.0,3514.9,0.9106]
[1754220214022,4.503,3515.0,3514.9,0.9106]
[1754220214232,0.55,3515.9,3514.9,0.9106]
[1754220214425,30.0,3515.7,3515.0,0.4801]
[1754220214624,4.68117746,3515.8,3515.0,0.9086]
[1754220214625,40.0,3515.5,3515.0,0.9086]
[1754220214807,40.0,3515.3,3515.1,0.9086]
[1754220215012,4.503,3515.2,3515.1,0.4285]
[1754220215237,4.503,3515.2,3514.9,0.002]
[1754220215466,30.0,3515.0,3514.9,0.002]
[1754220215673,30.0,3515.1,3514.9,0.4305]
[1754220215852,3.0,3515.7,3514.9,0.4305]
[1754220216056,30.0,3515.5,3514.9,0.4305]
[1754220216249,40.0,3515.3,3515.0,0.4801]
[1754220216452,4.503,3515.2,3515.0,0.4801]
[1754220216673,3.0,3515.8,3515.1,0.4285]
[1754220216839,30.0,3515.6,3515.2,0.4801]
[1754220217034,0.03347659,3515.5,3514.9,0.002]
[1754220217285,30.0,3515.3,3514.9,0.002]
[1754220217498,4.502,3515.4,3514.9,0.002]
[1754220217787,30.0,3515.3,3515.0,0.4801]
[1754220218388,30.0,3515.3,3514.9,0.002]
[1754220218544,30.0,3515.3,3515.1,0.4801]
[1754220218745,4.502,3515.2,3514.9,0.002]
[1754220218970,10.0,3515.1,3514.9,0.002]
[1754220219170,34.502,3515.0,3514.9,0.002]
[1754220219377,4.502,3515.0,3514.9,0.002]
[1754220220043,4.502,3515.0,3514.9,0.9106]
[1754220220592,4.501,3515.0,3514.9,0.9106]
[1754220221093,3.0,3515.7,3514.9,0.9106]
[1754220221240,40.0,3515.4,3515.0,0.4801]
[1754220221447,40.0,3515.2,3515.1,0.9086]
[1754220221645,34.501,3515.2,3515.1,0.4801]
[1754220222059,34.501,3515.2,3514.9,0.002]
[1754220222264,30.0,3515.0,3514.9,0.002]
[1754220222462,3.08908755,3515.0,3514.9,0.002]
[1754220222679,33.32658755,3515.0,3514.9,0.002]
[1754220223330,33.08908755,3515.0,3514.9,0.002]
[1754220223878,37.58908755,3515.0,3514.9,0.002]
[1754220224294,40.08858755,3515.0,3514.9,0.002]
[1754220227032,33.08908755,3515.0,3514.9,0.002]
[1754220227236,37.58908755,3515.0,3514.9,0.002]
[1754220227530,33.08908755,3515.0,3514.9,0.002]
[1754220228030,37.58808755,3515.0,3514.9,0.002]
[1754220229726,37.67717864,3515.0,3514.9,0.002]
[1754220231317,39.38917864,3515.0,3514.9,0.002]
[1754220232051,36.38917864,3515.0,3514.9,0.002]
[1754220232604,36.93917864,3515.0,3514.9,0.002]
[1754220232834,37.17667864,3515.0,3514.9,0.002]
[1754220233934,40.17667864,3515.0,3514.9,0.002]
[1754220234117,41.712,3514.8,3514.5,0.002]
[1754220234439,30.0,3514.6,3514.5,0.002]
[1754220234607,30.17817864,3514.6,3514.5,0.002]
[1754220235036,30.08909109,3514.6,3514.5,0.002]
[1754220235228,34.6751957,3514.6,3514.5,0.002]
[1754220235433,34.6751957,3514.6,3514.5,0.4533]
[1754220235740,34.58610317,3514.6,3514.5,0.002]
[1754220236255,34.497,3514.6,3514.5,0.002]
[1754220237828,34.67520946,3514.6,3514.5,0.002]
[1754220238142,37.67520946,3514.6,3514.5,0.002]
[1754220238644,37.6752071,3514.6,3514.5,0.002]
[1754220241448,39.3872071,3514.6,3514.5,0.002]
[1754220241762,40.1747071,3514.6,3514.5,0.002]
[1754220241920,1.712,3514.4,3513.0,0.002]
[1754220242253,1.712,3514.4,3512.6,0.002]
[1754220242254,31.712,3513.2,3512.6,0.002]
[1754220242475,44.712,3512.9,3512.6,0.002]
[1754220242652,32.262,3512.6,3511.0,0.4533]
[1754220242830,32.262,3512.6,3512.0,0.856271]
[1754220242831,32.35110355,3512.6,3512.0,0.856271]
[1754220243030,9.84610355,3512.6,3511.0,0.4533]
[1754220243233,2.262,3512.4,3511.3,0.4513]
[1754220243462,0.40185263,3512.7,3511.6,0.4513]
[1754220243463,1.712,3512.0,3511.6,0.4513]
[1754220243754,34.495,3511.9,3511.8,0.452]
[1754220243961,34.495,3511.9,3511.8,0.002]
[1754220244627,33.0,3511.9,3511.8,0.002]
[1754220244839,33.0,3511.9,3511.8,0.9033]
[1754220245020,3.0,3511.9,3511.8,0.9033]
[1754220245248,3.0,3512.7,3511.8,0.9033]
[1754220245482,40.0,3512.4,3511.8,0.002]
[1754220245715,30.0,3512.2,3511.9,0.9013]
[1754220245962,4.495,3512.3,3512.0,0.9013]
[1754220246146,0.08914583,3512.2,3512.1,0.9013]
[1754220246455,4.495,3512.7,3512.1,0.9013]
[1754220246653,4.495,3512.7,3512.2,0.9013]
[1754220246654,0.08914465,3512.6,3512.2,0.9013]
[1754220246817,0.08914465,3512.5,3511.8,0.002]
[1754220247020,0.08914465,3512.4,3512.3,0.9013]
[1754220247221,0.08914465,3512.4,3511.8,0.002]
[1754220247422,0.08914465,3512.3,3511.8,0.002]
[1754220247766,0.08914465,3512.8,3511.8,0.002]
[1754220247930,0.08914465,3512.7,3511.9,0.9013]
[1754220248125,0.08914465,3512.6,3511.8,0.002]
[1754220248320,3.001,3512.9,3512.0,0.9013]
[1754220248546,3.001,3512.9,3511.8,0.002]
[1754220248750,3.001,3512.9,3512.1,0.9013]
[1754220248946,30.21176201,3512.8,3512.2,0.9013]
[1754220249162,30.0,3512.6,3512.2,0.9013]
[1754220249337,4.495,3512.5,3512.2,0.4513]
[1754220249545,30.0,3512.4,3512.3,0.4513]
[1754220249743,4.495,3512.5,3512.4,0.9013]
[1754220250564,4.5841446,3512.5,3512.4,0.9013]
[1754220250768,0.0891446,3512.5,3512.4,0.9013]
[1754220250967,4.495,3512.5,3512.4,0.9013]
[1754220251142,4.5841446,3512.5,3512.4,0.9013]
[1754220251342,4.495,3512.5,3512.4,0.9013]
[1754220251945,4.495,3512.5,3512.4,0.4513]
[1754220252836,4.495,3512.5,3512.1,0.45]
[1754220253032,4.495,3512.5,3512.2,0.9013]
[1754220253366,30.0,3512.4,3512.0,0.4513]
[1754220253665,30.0,3512.2,3511.8,0.4533]
[1754220253867,30.0,3512.1,3511.9,0.4513]
[1754220254068,30.0,3512.1,3511.8,0.452]
[1754220254370,30.0,3512.1,3512.0,0.4513]
[1754220255366,30.0,3512.1,3511.8,0.002]
[1754220255568,40.0,3511.9,3511.8,0.002]
[1754220255866,30.0,3512.1,3511.8,0.002]
[1754220256072,40.0,3511.9,3511.8,0.002]
[1754220256248,34.494,3511.9,3511.8,0.002]
[1754220256637,34.5831622,3511.9,3511.8,0.002]
[1754220256854,40.16784023,3511.9,3511.8,0.002]
[1754220259551,37.67234023,3511.9,3511.8,0.002]
[1754220259772,30.0891622,3511.9,3511.8,0.9204]
[1754220260175,34.5831622,3511.9,3511.8,0.002]
[1754220260456,34.5831622,3511.9,3511.8,0.4567]
[1754220261167,34.5831622,3511.9,3511.8,0.002]
[1754220261759,37.5831622,3511.9,3511.8,0.002]
[1754220262569,37.67233798,3511.9,3511.8,0.002]
[1754220262972,33.17833798,3511.9,3511.8,0.002]
[1754220263171,37.67133798,3511.9,3511.8,0.002]
[1754220264591,33.17833798,3511.9,3511.8,0.002]
[1754220264894,37.5821622,3511.9,3511.8,0.9204]
[1754220265458,33.0891622,3511.9,3511.8,0.9204]
[1754220265709,37.5821622,3511.9,3511.8,0.002]
[1754220266458,37.67133368,3511.9,3511.8,0.4567]
[1754220266658,37.67133368,3511.9,3511.8,0.002]
[1754220266860,39.38333368,3511.9,3511.8,0.002]
[1754220267593,39.61683368,3511.9,3511.8,0.002]
[1754220267770,40.16683368,3511.9,3511.8,0.002]
[1754220268178,1.28550695,3512.8,3511.4,0.002]
[1754220268697,1.28550695,3512.8,3511.5,0.4547]
[1754220268856,1.28550695,3512.8,3511.5,0.9184]
[1754220269060,1.28550695,3512.8,3511.6,1.06544]
[1754220269268,1.28550695,3512.8,3511.7,0.9184]
[1754220269759,1.28550695,3512.8,3511.6,0.14704]
[1754220269760,1.28550695,3512.8,3511.8,0.9184]
[1754220269989,1.28550695,3512.8,3511.9,0.9184]
[1754220270190,1.28550695,3512.8,3511.6,0.14704]
[1754220270489,1.28550695,3512.8,3512.0,0.9184]
[1754220270688,1.28550695,3512.8,3512.0,0.4637]
[1754220270888,1.28550695,3512.8,3512.1,0.9184]
[1754220271064,1.28550695,3512.8,3511.4,0.002]
[1754220271270,1.28550695,3512.8,3512.2,0.9184]
[1754220271500,1.28550695,3512.8,3512.3,0.9184]
[1754220271675,1.28550695,3512.8,3511.4,0.002]
[1754220271875,1.28550695,3512.8,3512.4,0.4547]
[1754220272083,3.0,3512.6,3512.4,0.4547]
[1754220272282,40.0,3512.5,3512.4,0.4547]
[1754220272603,30.0,3512.5,3512.4,0.4547]
[1754220275983,30.0,3512.5,3512.2,0.4637]
[1754220276182,30.0,3512.5,3512.2,0.9184]
[1754220276387,30.0,3512.5,3512.2,0.4547]
[1754220276706,3.0,3512.6,3512.2,0.4547]
[1754220276898,3.0,3512.4,3512.2,0.4547]
[1754220277200,30.0,3512.3,3512.2,0.4547]
[1754220277607,30.0,3512.3,3512.2,0.9184]
[1754220278001,30.0,3512.3,3512.2,0.4547]
[1754220278605,30.0,3512.3,3512.2,0.9184]
[1754220281306,30.0,3512.3,3512.2,0.4547]
[1754220283914,30.0,3512.3,3512.2,0.9184]
[1754220285090,30.0,3512.3,3512.2,0.4547]
[1754220285286,30.0,3512.3,3511.9,1.322063]
[1754220285287,30.0,3512.3,3511.9,1.776763]
[1754220285486,40.0,3512.1,3511.9,0.002]
[1754220285711,30.03347659,3512.0,3511.9,0.002]
[1754220286013,3.0,3512.2,3511.9,0.002]
[1754220286311,30.0,3512.0,3511.9,0.002]
[1754220286514,30.0,3512.1,3511.9,0.002]
[1754220287731,30.03347659,3512.0,3511.9,0.002]
[1754220287883,30.0,3512.1,3511.9,0.002]
[1754220288085,30.0,3512.0,3511.9,0.002]
[1754220288307,30.0,3512.1,3511.9,0.4567]
[1754220288593,29.90708449,3512.1,3511.9,0.4567]
[1754220289637,32.94056108,3512.0,3511.9,0.002]
[1754220289847,32.90708449,3512.0,3511.9,0.002]
[1754220291630,37.39508449,3512.0,3511.9,0.002]
[1754220292028,37.75248449,3512.0,3511.9,0.002]
[1754220292231,37.80678449,3512.0,3511.9,0.002]
[1754220293231,32.90708449,3512.0,3511.9,0.002]
[1754220293429,37.39408449,3512.0,3511.9,0.4965]
[1754220293744,37.39408449,3512.0,3511.9,0.002]
[1754220293941,37.80578449,3512.0,3511.9,0.002]
[1754220294308,37.75148449,3512.0,3511.9,0.002]
[1754220294739,37.39269149,3512.0,3511.9,0.002]
[1754220294926,37.39269149,3512.0,3511.9,0.4965]
[1754220296513,37.39269149,3512.0,3511.9,0.002]
[1754220297573,32.90569149,3512.0,3511.9,0.9296]
[1754220298159,1.713,3512.8,3511.9,0.9296]
[1754220298365,33.0,3512.1,3512.0,0.9276]
[1754220299463,3.0,3512.0,3511.9,0.002]
[1754220299854,3.0,3512.0,3511.9,0.4965]
[1754220300364,3.0,3512.0,3511.9,0.9296]
[1754220301252,33.0,3512.0,3511.9,0.002]
[1754220301459,33.0,3512.0,3511.5,0.002]
[1754220301768,4.712,3511.1,3510.5,0.002]
[1754220301995,1.712,3510.8,3510.5,0.002]
[1754220302131,39.78147659,3510.7,3510.5,0.002]
[1754220302456,40.24891061,3510.7,3510.5,0.002]
[1754220302866,39.28721061,3510.7,3510.5,0.002]
[1754220303830,33.08921061,3510.7,3510.5,0.002]
[1754220304035,37.57521061,3510.7,3510.5,0.002]
[1754220304632,39.28721061,3510.7,3510.5,0.002]
[1754220305976,39.28721061,3510.7,3510.6,0.00061]
[1754220306479,37.98691061,3510.7,3510.6,0.00061]
[1754220307278,40.19461061,3510.7,3510.6,0.00061]
[1754220307433,2.262,3510.0,3509.6,0.002]
[1754220307792,35.262,3509.7,3509.6,0.002]
[1754220307971,46.68621061,3509.7,3509.6,0.002]
[1754220308134,3.55,3509.6,3508.6,0.002]
[1754220308495,43.55,3509.2,3508.6,0.002]
[1754220308781,0.55,3508.8,3507.9,0.4505]
[1754220308964,40.0,3508.5,3507.9,0.4505]
[1754220309176,40.0,3508.5,3507.7,0.4331]
[1754220309177,43.0,3508.3,3507.7,0.4331]
[1754220309346,3.0,3508.0,3507.3,0.4331]
[1754220309537,38.0122,3507.9,3507.3,0.4331]
[1754220309731,33.5262,3507.9,3507.3,0.4331]
[1754220309971,33.0,3507.9,3507.8,0.4351]
[1754220310143,37.487,3507.9,3507.8,0.002]
[1754220310581,37.487,3507.9,3507.8,0.4351]
[1754220310763,37.487,3507.9,3507.8,0.9296]
[1754220311135,33.0,3507.9,3507.8,0.9296]
[1754220311370,34.487,3507.9,3507.8,0.9296]
[1754220311887,34.487,3507.9,3507.8,0.4965]
[1754220312087,30.0,3507.9,3507.8,0.9296]
[1754220312670,30.0,3509.0,3507.8,0.9296]
[1754220312851,40.0,3508.8,3507.9,0.9276]
[1754220313227,4.488,3508.7,3508.0,0.9276]
[1754220313361,4.488,3508.7,3508.1,0.9276]
[1754220313557,4.488,3508.7,3508.2,0.9276]
[1754220313779,30.0,3508.6,3508.3,0.9276]
[1754220313952,30.0,3508.6,3508.4,0.9276]
[1754220314135,30.0,3508.6,3508.5,0.9276]
[1754220314336,30.0,3509.2,3508.5,0.9276]
[1754220314577,40.0,3509.0,3508.6,0.9276]
[1754220314758,30.0,3509.0,3508.7,0.9276]
[1754220314962,4.488,3509.0,3508.8,0.9276]
[1754220315277,4.488,3509.0,3508.9,0.9276]
[1754220315474,4.488,3509.0,3508.9,0.4945]